[Event "Late-Titled-Tuesday-Blitz-November-28-2023"]
[Site "Chess.com"]
[Date "2023.11.28"]
[Round "7"]
[White "zverr1"]
[Black "hristos03"]
[Result "1-0"]
[WhiteElo "2520"]
[BlackElo "2364"]
[TimeControl "180+1"]
[EndTime "15:15:05 PST"]
[Termination "zverr1 won on time"]

1. e4 {[%clk 0:02:55.8]} 1... c5 {[%clk 0:02:58.5]} 2. Nf3 {[%clk 0:02:55]} 2...
d6 {[%clk 0:02:58.2]} 3. Nc3 {[%clk 0:02:54.8]} 3... Nf6 {[%clk 0:02:57.4]} 4.
e5 {[%clk 0:02:55.1]} 4... dxe5 {[%clk 0:02:54.4]} 5. Nxe5 {[%clk 0:02:56]} 5...
Nbd7 {[%clk 0:02:49.5]} 6. d4 {[%clk 0:02:55.7]} 6... e6 {[%clk 0:02:40.5]} 7.
Bg5 {[%clk 0:02:52.1]} 7... h6 {[%clk 0:02:27]} 8. Bh4 {[%clk 0:02:39.5]} 8...
Qb6 {[%clk 0:02:23.7]} 9. Nc4 {[%clk 0:02:26.9]} 9... Qd8 {[%clk 0:02:08.6]} 10.
Nb5 {[%clk 0:01:49.3]} 10... a6 {[%clk 0:01:54.5]} 11. Nbd6+ {[%clk 0:01:43.7]}
11... Bxd6 {[%clk 0:01:54.3]} 12. Nxd6+ {[%clk 0:01:44.6]} 12... Ke7 {[%clk
0:01:50.5]} 13. Nc4 {[%clk 0:01:08.5]} 13... b5 {[%clk 0:01:29.6]} 14. Ne5
{[%clk 0:01:05.4]} 14... Bb7 {[%clk 0:01:29.4]} 15. Be2 {[%clk 0:00:35.7]} 15...
Rc8 {[%clk 0:00:42.7]} 16. Bf3 {[%clk 0:00:31.1]} 16... Qb6 {[%clk 0:00:17.8]}
17. Nxd7 {[%clk 0:00:24.6]} 17... Qa5+ {[%clk 0:00:16.3]} 18. c3 {[%clk
0:00:16.6]} 18... Bxf3 {[%clk 0:00:16.2]} 19. Qxf3 {[%clk 0:00:12.1]} 19... Kxd7
{[%clk 0:00:15.9]} 20. Bxf6 {[%clk 0:00:10.5]} 20... gxf6 {[%clk 0:00:16.8]} 21.
Qxf6 {[%clk 0:00:09]} 21... Rhf8 {[%clk 0:00:15.2]} 22. O-O {[%clk 0:00:08.2]}
22... c4 {[%clk 0:00:13.1]} 23. d5 {[%clk 0:00:08.1]} 23... Qb6 {[%clk
0:00:09.5]} 24. dxe6+ {[%clk 0:00:05.6]} 24... Qxe6 {[%clk 0:00:09]} 25. Rad1+
{[%clk 0:00:06.4]} 25... Kc7 {[%clk 0:00:09.3]} 26. Qf4+ {[%clk 0:00:06.5]}
26... Kb7 {[%clk 0:00:08.3]} 27. Rfe1 {[%clk 0:00:06.3]} 27... Qg6 {[%clk
0:00:05.2]} 28. Rd6 {[%clk 0:00:05.6]} 28... Qg5 {[%clk 0:00:05.5]} 29. Qf3+
{[%clk 0:00:04.1]} 29... Ka7 {[%clk 0:00:02.3]} 30. h4 {[%clk 0:00:03.9]} 30...
Qg6 {[%clk 0:00:01.2]} 31. Qe3+ {[%clk 0:00:04.2]} 31... Kb8 {[%clk 0:00:01.1]}
32. Rxg6 {[%clk 0:00:04.4]} 32... fxg6 {[%clk 0:00:01.9]} 33. Qb6+ {[%clk
0:00:04.9]} 1-0

[Event "Late-Titled-Tuesday-Blitz-November-28-2023"]
[Site "Chess.com"]
[Date "2023.11.28"]
[Round "7"]
[White "cthake"]
[Black "C_K_G"]
[Result "1-0"]
[WhiteElo "1930"]
[BlackElo "2172"]
[TimeControl "180+1"]
[EndTime "15:15:06 PST"]
[Termination "cthake won by checkmate"]

1. e4 {[%clk 0:03:00.9]} 1... c5 {[%clk 0:02:56.6]} 2. Nc3 {[%clk 0:02:59.3]}
2... d6 {[%clk 0:02:56.1]} 3. f4 {[%clk 0:02:58.1]} 3... e6 {[%clk 0:02:56.3]}
4. Nf3 {[%clk 0:02:57.6]} 4... Nf6 {[%clk 0:02:55.7]} 5. Bb5+ {[%clk 0:02:55.6]}
5... Bd7 {[%clk 0:02:54.5]} 6. Bxd7+ {[%clk 0:02:52.4]} 6... Qxd7 {[%clk
0:02:54.7]} 7. O-O {[%clk 0:02:52]} 7... d5 {[%clk 0:02:47.9]} 8. e5 {[%clk
0:02:51.1]} 8... Ne4 {[%clk 0:02:47.2]} 9. Nxe4 {[%clk 0:02:42.3]} 9... dxe4
{[%clk 0:02:47.2]} 10. Ng5 {[%clk 0:02:42.3]} 10... Qd4+ {[%clk 0:02:28.7]} 11.
Kh1 {[%clk 0:02:41.6]} 11... h6 {[%clk 0:02:28.7]} 12. Nh3 {[%clk 0:02:40.8]}
12... Nc6 {[%clk 0:02:07.8]} 13. Qe2 {[%clk 0:02:39.6]} 13... O-O-O {[%clk
0:02:02.5]} 14. Nf2 {[%clk 0:02:35.8]} 14... f5 {[%clk 0:01:40.4]} 15. exf6
{[%clk 0:02:35.1]} 15... gxf6 {[%clk 0:01:37]} 16. Qxe4 {[%clk 0:02:32.7]} 16...
Qd6 {[%clk 0:01:30.9]} 17. c3 {[%clk 0:02:07.1]} 17... f5 {[%clk 0:01:19]} 18.
Qc4 {[%clk 0:01:48.9]} 18... Bg7 {[%clk 0:01:17.3]} 19. d3 {[%clk 0:01:46.8]}
19... Kb8 {[%clk 0:01:13.6]} 20. Be3 {[%clk 0:01:44.4]} 20... b6 {[%clk
0:01:13.6]} 21. a4 {[%clk 0:01:40.2]} 21... Rc8 {[%clk 0:01:03.4]} 22. Rfd1
{[%clk 0:01:32.5]} 22... Bf6 {[%clk 0:00:57.6]} 23. Qb5 {[%clk 0:01:27.4]} 23...
Ka8 {[%clk 0:00:52]} 24. Rd2 {[%clk 0:01:05.8]} 24... Rhg8 {[%clk 0:00:51]} 25.
Rad1 {[%clk 0:01:00.3]} 25... Qd5 {[%clk 0:00:30.1]} 26. Nh3 {[%clk 0:00:52.3]}
26... Rg7 {[%clk 0:00:20.3]} 27. Qc4 {[%clk 0:00:44.2]} 27... Qd6 {[%clk
0:00:17.8]} 28. d4 {[%clk 0:00:42.5]} 28... cxd4 {[%clk 0:00:17.9]} 29. cxd4
{[%clk 0:00:42.7]} 29... Ne7 {[%clk 0:00:15.4]} 30. Qe2 {[%clk 0:00:41.3]} 30...
Nd5 {[%clk 0:00:15.3]} 31. Qf3 {[%clk 0:00:41]} 31... Rgc7 {[%clk 0:00:14.5]}
32. Bg1 {[%clk 0:00:38.4]} 32... Rc2 {[%clk 0:00:13.9]} 33. b4 {[%clk
0:00:36.2]} 33... Qxb4 {[%clk 0:00:13.7]} 34. Rxc2 {[%clk 0:00:29]} 34... Rxc2
{[%clk 0:00:14.6]} 35. Nf2 {[%clk 0:00:28.5]} 35... Qxa4 {[%clk 0:00:12.6]} 36.
Nd3 {[%clk 0:00:21.7]} 36... Rc3 {[%clk 0:00:12.7]} 37. Qe2 {[%clk 0:00:20.2]}
37... Ra3 {[%clk 0:00:08.6]} 38. Qxe6 {[%clk 0:00:19]} 38... Nc7 {[%clk
0:00:04.8]} 39. Qc8# {[%clk 0:00:18.6]} 1-0

[Event "Late-Titled-Tuesday-Blitz-November-28-2023"]
[Site "Chess.com"]
[Date "2023.11.28"]
[Round "7"]
[White "StellarChessPro"]
[Black "ElephantChessGenius"]
[Result "1-0"]
[WhiteElo "2521"]
[BlackElo "2253"]
[TimeControl "180+1"]
[EndTime "15:15:10 PST"]
[Termination "StellarChessPro won by checkmate"]

1. Nf3 {[%clk 0:03:00.9]} 1... c5 {[%clk 0:02:56.8]} 2. g3 {[%clk 0:03:01.1]}
2... g6 {[%clk 0:02:56.6]} 3. Bg2 {[%clk 0:03:01.5]} 3... Bg7 {[%clk 0:02:57.2]}
4. O-O {[%clk 0:03:01.6]} 4... Nc6 {[%clk 0:02:57.6]} 5. d3 {[%clk 0:03:02]}
5... e5 {[%clk 0:02:57.9]} 6. Nbd2 {[%clk 0:03:02.7]} 6... Nge7 {[%clk
0:02:58.2]} 7. e4 {[%clk 0:03:03.2]} 7... d6 {[%clk 0:02:58.7]} 8. Nc4 {[%clk
0:03:03.5]} 8... O-O {[%clk 0:02:58.5]} 9. a4 {[%clk 0:03:03.8]} 9... f5 {[%clk
0:02:57.2]} 10. Nh4 {[%clk 0:03:01.1]} 10... f4 {[%clk 0:02:56]} 11. gxf4 {[%clk
0:02:58.4]} 11... exf4 {[%clk 0:02:56]} 12. c3 {[%clk 0:02:50.5]} 12... Be6
{[%clk 0:02:49.8]} 13. Kh1 {[%clk 0:02:49.6]} 13... Qd7 {[%clk 0:02:47.9]} 14.
Nf3 {[%clk 0:02:46.6]} 14... h6 {[%clk 0:02:46.5]} 15. Rg1 {[%clk 0:02:42.3]}
15... g5 {[%clk 0:02:46.1]} 16. Nfd2 {[%clk 0:02:40.4]} 16... g4 {[%clk
0:02:44.4]} 17. Bf1 {[%clk 0:02:30.2]} 17... h5 {[%clk 0:02:42.4]} 18. h3 {[%clk
0:02:25.7]} 18... g3 {[%clk 0:02:36]} 19. Qxh5 {[%clk 0:02:22.7]} 19... gxf2
{[%clk 0:02:28.9]} 20. Rg5 {[%clk 0:02:14.7]} 20... Bf7 {[%clk 0:02:21.7]} 21.
Qh6 {[%clk 0:02:05.8]} 21... Ng6 {[%clk 0:02:18.4]} 22. Rxg6 {[%clk 0:02:05.7]}
22... Bxg6 {[%clk 0:02:18.5]} 23. Qxg6 {[%clk 0:02:06.6]} 23... Rf6 {[%clk
0:02:18.6]} 24. Qg5 {[%clk 0:01:53.6]} 24... Qf7 {[%clk 0:02:08.9]} 25. Qd5
{[%clk 0:01:46.2]} 25... Re6 {[%clk 0:01:55.8]} 26. Nf3 {[%clk 0:01:43.6]} 26...
Qg6 {[%clk 0:01:44]} 27. Ng5 {[%clk 0:01:31.1]} 27... Re8 {[%clk 0:01:42.3]} 28.
Bxf4 {[%clk 0:01:20.2]} 28... Be5 {[%clk 0:01:32]} 29. Be3 {[%clk 0:01:11.2]}
29... Kh8 {[%clk 0:01:20.5]} 30. Bg2 {[%clk 0:01:09.5]} 30... Rf6 {[%clk
0:01:19.3]} 31. Rf1 {[%clk 0:01:07.7]} 31... Bg3 {[%clk 0:01:17.3]} 32. e5
{[%clk 0:01:00.1]} 32... Nxe5 {[%clk 0:01:12.3]} 33. Be4 {[%clk 0:00:57.4]}
33... Qh5 {[%clk 0:01:08.9]} 34. Nxd6 {[%clk 0:00:53.8]} 34... Qe2 {[%clk
0:00:58.5]} 35. Bg2 {[%clk 0:00:39]} 35... Ref8 {[%clk 0:00:54.6]} 36. Bxc5
{[%clk 0:00:36.8]} 36... Rg8 {[%clk 0:00:36.3]} 37. Nde4 {[%clk 0:00:35.8]}
37... Rh6 {[%clk 0:00:29.5]} 38. Nxg3 {[%clk 0:00:34.4]} 38... Rxg5 {[%clk
0:00:26.5]} 39. Bd4 {[%clk 0:00:29.3]} 39... Qe1 {[%clk 0:00:20.5]} 40. Bxe5+
{[%clk 0:00:27.8]} 40... Rxe5 {[%clk 0:00:20.3]} 41. Qd8+ {[%clk 0:00:27.9]}
41... Re8 {[%clk 0:00:19.2]} 42. Qg5 {[%clk 0:00:27]} 42... Rhe6 {[%clk
0:00:16.7]} 43. Ne4 {[%clk 0:00:24.2]} 43... Qe2 {[%clk 0:00:10]} 44. Rxf2
{[%clk 0:00:20.7]} 44... Qe1+ {[%clk 0:00:10.1]} 45. Rf1 {[%clk 0:00:21]} 45...
Qe2 {[%clk 0:00:10.4]} 46. Qh4+ {[%clk 0:00:21.4]} 46... Kg8 {[%clk 0:00:09.9]}
47. Rg1 {[%clk 0:00:22]} 47... Rg6 {[%clk 0:00:08.5]} 48. Nf6+ {[%clk
0:00:22.1]} 48... Rxf6 {[%clk 0:00:07.8]} 49. Qxf6 {[%clk 0:00:22.8]} 49... Re3
{[%clk 0:00:06.4]} 50. Bd5+ {[%clk 0:00:23]} 50... Kh7 {[%clk 0:00:06.3]} 51.
Qg7# {[%clk 0:00:23.3]} 1-0

[Event "Late-Titled-Tuesday-Blitz-November-28-2023"]
[Site "Chess.com"]
[Date "2023.11.28"]
[Round "7"]
[White "kleber2007"]
[Black "nitpicker"]
[Result "1-0"]
[WhiteElo "2394"]
[BlackElo "2309"]
[TimeControl "180+1"]
[EndTime "15:15:10 PST"]
[Termination "kleber2007 won on time"]

1. Nf3 {[%clk 0:03:00.9]} 1... Nf6 {[%clk 0:02:58.5]} 2. g3 {[%clk 0:03:00.3]}
2... d5 {[%clk 0:02:57.5]} 3. Bg2 {[%clk 0:02:59.7]} 3... e6 {[%clk 0:02:57.7]}
4. O-O {[%clk 0:02:59.3]} 4... Be7 {[%clk 0:02:53]} 5. c4 {[%clk 0:02:58.7]}
5... c6 {[%clk 0:02:53]} 6. d4 {[%clk 0:02:57.7]} 6... O-O {[%clk 0:02:52.9]} 7.
Qc2 {[%clk 0:02:57.5]} 7... b6 {[%clk 0:02:53.1]} 8. Rd1 {[%clk 0:02:56.5]} 8...
Nbd7 {[%clk 0:02:44.3]} 9. b3 {[%clk 0:02:56.3]} 9... Bb7 {[%clk 0:02:44.2]} 10.
Nc3 {[%clk 0:02:56.1]} 10... Rc8 {[%clk 0:02:44.2]} 11. e4 {[%clk 0:02:55.9]}
11... a5 {[%clk 0:02:29.8]} 12. e5 {[%clk 0:02:50.8]} 12... Ne8 {[%clk
0:02:29.8]} 13. Bb2 {[%clk 0:02:47.4]} 13... Nc7 {[%clk 0:02:29]} 14. h4 {[%clk
0:02:40.4]} 14... h6 {[%clk 0:02:29.1]} 15. Rac1 {[%clk 0:02:31.9]} 15... c5
{[%clk 0:02:29.3]} 16. cxd5 {[%clk 0:02:24.5]} 16... Nxd5 {[%clk 0:02:27.5]} 17.
Nxd5 {[%clk 0:02:22.2]} 17... Bxd5 {[%clk 0:02:24.5]} 18. Qe2 {[%clk 0:02:16]}
18... Qc7 {[%clk 0:02:11.9]} 19. dxc5 {[%clk 0:02:11.2]} 19... Nxc5 {[%clk
0:02:05.5]} 20. Nd4 {[%clk 0:02:06]} 20... Bxg2 {[%clk 0:02:00.5]} 21. Kxg2
{[%clk 0:02:05.7]} 21... Rfd8 {[%clk 0:01:49.5]} 22. Qf3 {[%clk 0:01:56.8]}
22... Rd5 {[%clk 0:01:03.6]} 23. Nb5 {[%clk 0:01:55.9]} 23... Qd7 {[%clk
0:01:02.4]} 24. Rxd5 {[%clk 0:01:52.9]} 24... exd5 {[%clk 0:01:02.7]} 25. Nd4
{[%clk 0:01:25.7]} 25... Rd8 {[%clk 0:00:59.9]} 26. Nf5 {[%clk 0:01:21.1]} 26...
Bf8 {[%clk 0:00:56]} 27. Rd1 {[%clk 0:01:14.1]} 27... Ne6 {[%clk 0:00:50.8]} 28.
Qg4 {[%clk 0:01:01.9]} 28... Kh7 {[%clk 0:00:45.2]} 29. Ne3 {[%clk 0:00:50.9]}
29... d4 {[%clk 0:00:29.1]} 30. Qe4+ {[%clk 0:00:49.6]} 30... Kg8 {[%clk
0:00:24]} 31. Nf5 {[%clk 0:00:49.3]} 31... d3 {[%clk 0:00:16.9]} 32. Nd6 {[%clk
0:00:48.3]} 32... Bxd6 {[%clk 0:00:15.8]} 33. exd6 {[%clk 0:00:24.1]} 33... Qxd6
{[%clk 0:00:14.2]} 34. Rd2 {[%clk 0:00:24.2]} 34... Qd5 {[%clk 0:00:13.5]} 35.
Qxd5 {[%clk 0:00:23.2]} 35... Rxd5 {[%clk 0:00:14.1]} 36. Kf3 {[%clk 0:00:23.9]}
36... Nc5 {[%clk 0:00:14]} 37. Ba3 {[%clk 0:00:21]} 37... Ne6 {[%clk 0:00:10.3]}
38. Ke4 {[%clk 0:00:19.6]} 38... Rd4+ {[%clk 0:00:09.6]} 39. Ke3 {[%clk
0:00:19.7]} 39... f5 {[%clk 0:00:07.9]} 40. Rxd3 {[%clk 0:00:19.1]} 40... Rxd3+
{[%clk 0:00:05.7]} 41. Kxd3 {[%clk 0:00:20]} 41... Kf7 {[%clk 0:00:05.7]} 42.
Kc4 {[%clk 0:00:19.3]} 42... f4 {[%clk 0:00:02.3]} 43. Kb5 {[%clk 0:00:15.2]}
1-0

[Event "Late-Titled-Tuesday-Blitz-November-28-2023"]
[Site "Chess.com"]
[Date "2023.11.28"]
[Round "7"]
[White "KorolDimitriy75"]
[Black "PawnEatingZombie"]
[Result "0-1"]
[WhiteElo "2289"]
[BlackElo "2194"]
[TimeControl "180+1"]
[EndTime "15:15:12 PST"]
[Termination "PawnEatingZombie won on time"]

1. d4 {[%clk 0:03:00.9]} 1... Nf6 {[%clk 0:02:59.2]} 2. c4 {[%clk 0:03:00.8]}
2... g6 {[%clk 0:02:59.4]} 3. Nc3 {[%clk 0:03:01.3]} 3... d5 {[%clk 0:02:59.8]}
4. cxd5 {[%clk 0:03:01.3]} 4... Nxd5 {[%clk 0:03:00.7]} 5. e4 {[%clk 0:03:01.8]}
5... Nxc3 {[%clk 0:03:01]} 6. bxc3 {[%clk 0:03:02.7]} 6... Bg7 {[%clk
0:03:01.3]} 7. Nf3 {[%clk 0:03:03.6]} 7... c5 {[%clk 0:03:01.5]} 8. Rb1 {[%clk
0:03:04.5]} 8... O-O {[%clk 0:02:58.6]} 9. Be2 {[%clk 0:03:04.3]} 9... Nc6
{[%clk 0:02:57.1]} 10. d5 {[%clk 0:03:04.4]} 10... Ne5 {[%clk 0:02:57.1]} 11.
Nxe5 {[%clk 0:03:04]} 11... Bxe5 {[%clk 0:02:57.2]} 12. Qd2 {[%clk 0:03:04]}
12... e6 {[%clk 0:02:51.6]} 13. f4 {[%clk 0:03:03.6]} 13... Bc7 {[%clk
0:02:51.5]} 14. O-O {[%clk 0:02:57.6]} 14... exd5 {[%clk 0:02:50.7]} 15. exd5
{[%clk 0:02:58.5]} 15... Ba5 {[%clk 0:02:34.7]} 16. Bb2 {[%clk 0:02:52.2]} 16...
Bf5 {[%clk 0:02:27.2]} 17. Rbd1 {[%clk 0:02:51.2]} 17... h5 {[%clk 0:02:15.7]}
18. d6 {[%clk 0:02:34.6]} 18... Qb6 {[%clk 0:01:54]} 19. Kh1 {[%clk 0:02:22.4]}
19... Rad8 {[%clk 0:01:52.5]} 20. Ba1 {[%clk 0:01:01.6]} 20... Rd7 {[%clk
0:01:50.5]} 21. Qd5 {[%clk 0:00:37.9]} 21... Rfd8 {[%clk 0:01:25.1]} 22. c4
{[%clk 0:00:30.1]} 22... Rxd6 {[%clk 0:01:21.1]} 23. Qe5 {[%clk 0:00:28.4]}
23... f6 {[%clk 0:01:20.1]} 24. Rxd6 {[%clk 0:00:14.8]} 24... Qxd6 {[%clk
0:01:00.5]} 25. Qxf6 {[%clk 0:00:13.7]} 25... Qxf6 {[%clk 0:01:00]} 26. Bxf6
{[%clk 0:00:14.6]} 26... Rd2 {[%clk 0:00:58.4]} 27. Bf3 {[%clk 0:00:14.1]} 27...
Kf7 {[%clk 0:00:37.3]} 28. Be5 {[%clk 0:00:13.7]} 28... b6 {[%clk 0:00:29.2]}
29. Bd5+ {[%clk 0:00:12]} 29... Ke7 {[%clk 0:00:26.7]} 30. h3 {[%clk 0:00:11]}
30... Rxa2 {[%clk 0:00:23.9]} 31. Rd1 {[%clk 0:00:10]} 31... Rd2 {[%clk
0:00:21.7]} 32. Rb1 {[%clk 0:00:08.9]} 32... Bb4 {[%clk 0:00:18.4]} 33. Ra1
{[%clk 0:00:08.5]} 33... a5 {[%clk 0:00:16.7]} 34. Bc7 {[%clk 0:00:07.9]} 34...
Bc3 {[%clk 0:00:07]} 35. Re1+ {[%clk 0:00:05.8]} 35... Kf6 {[%clk 0:00:06.1]}
36. Bxb6 {[%clk 0:00:05.4]} 36... a4 {[%clk 0:00:06.1]} 37. Bd8+ {[%clk
0:00:02.4]} 37... Kg7 {[%clk 0:00:05.4]} 38. Re7+ {[%clk 0:00:02.2]} 38... Kh6
{[%clk 0:00:04.9]} 0-1

[Event "Late-Titled-Tuesday-Blitz-November-28-2023"]
[Site "Chess.com"]
[Date "2023.11.28"]
[Round "7"]
[White "Fortitudine"]
[Black "whitemirrorninja"]
[Result "1-0"]
[WhiteElo "2405"]
[BlackElo "2516"]
[TimeControl "180+1"]
[EndTime "15:15:14 PST"]
[Termination "Fortitudine won by checkmate"]

1. c4 {[%clk 0:03:00.9]} 1... b6 {[%clk 0:02:58.9]} 2. e4 {[%clk 0:02:57.4]}
2... e5 {[%clk 0:02:57.7]} 3. Nc3 {[%clk 0:02:55.6]} 3... Nc6 {[%clk 0:02:57.4]}
4. g3 {[%clk 0:02:55.5]} 4... Bc5 {[%clk 0:02:56.4]} 5. Bg2 {[%clk 0:02:55.3]}
5... Nf6 {[%clk 0:02:56.3]} 6. Nge2 {[%clk 0:02:54.8]} 6... h5 {[%clk
0:02:56.5]} 7. h4 {[%clk 0:02:52.9]} 7... Ng4 {[%clk 0:02:56.3]} 8. O-O {[%clk
0:02:28.8]} 8... g5 {[%clk 0:02:54.2]} 9. hxg5 {[%clk 0:02:25]} 9... h4 {[%clk
0:02:52.7]} 10. d4 {[%clk 0:02:08.8]} 10... exd4 {[%clk 0:02:43.3]} 11. Nxd4
{[%clk 0:01:55]} 11... Nxf2 {[%clk 0:02:38.7]} 12. Rxf2 {[%clk 0:01:34.1]} 12...
Bxd4 {[%clk 0:02:38.5]} 13. Qf3 {[%clk 0:01:24.7]} 13... Ne5 {[%clk 0:02:38.1]}
14. Qf4 {[%clk 0:01:13.6]} 14... h3 {[%clk 0:02:07.2]} 15. Be3 {[%clk
0:00:47.2]} 15... hxg2 {[%clk 0:00:42.7]} 16. Bxd4 {[%clk 0:00:43.3]} 16... Rh1+
{[%clk 0:00:22.2]} 17. Kxg2 {[%clk 0:00:43.1]} 17... Rxa1 {[%clk 0:00:22.5]} 18.
Bxe5 {[%clk 0:00:18]} 18... Qe7 {[%clk 0:00:20.6]} 19. Nd5 {[%clk 0:00:18.6]}
19... Qf8 {[%clk 0:00:09.9]} 20. Nxc7+ {[%clk 0:00:19]} 20... Kd8 {[%clk
0:00:07.1]} 21. Bf6+ {[%clk 0:00:19.6]} 21... Qe7 {[%clk 0:00:05.6]} 22. Bxe7+
{[%clk 0:00:19.7]} 22... Kxe7 {[%clk 0:00:06.3]} 23. Qxf7+ {[%clk 0:00:18.9]}
23... Kd6 {[%clk 0:00:06.5]} 24. Qd5+ {[%clk 0:00:18.3]} 24... Kxc7 {[%clk
0:00:06.8]} 25. Qxa8 {[%clk 0:00:19]} 25... Bb7 {[%clk 0:00:06.4]} 26. Qxa7
{[%clk 0:00:19]} 26... Re1 {[%clk 0:00:06.1]} 27. Rf4 {[%clk 0:00:16]} 27... Kc8
{[%clk 0:00:04.1]} 28. Kf3 {[%clk 0:00:15]} 28... Rf1+ {[%clk 0:00:03.8]} 29.
Kg4 {[%clk 0:00:15.7]} 29... Re1 {[%clk 0:00:04.1]} 30. Kf5 {[%clk 0:00:16.2]}
30... Rg1 {[%clk 0:00:03.1]} 31. Qxb6 {[%clk 0:00:16.1]} 31... Rxg3 {[%clk
0:00:03.3]} 32. g6 {[%clk 0:00:14.8]} 32... d6 {[%clk 0:00:02.3]} 33. Kf6 {[%clk
0:00:14.5]} 33... d5 {[%clk 0:00:01.9]} 34. cxd5 {[%clk 0:00:13.6]} 34... Rg1
{[%clk 0:00:01.3]} 35. e5 {[%clk 0:00:13.3]} 35... Bxd5 {[%clk 0:00:01.4]} 36.
Qc5+ {[%clk 0:00:11.9]} 36... Kd7 {[%clk 0:00:02]} 37. Qxd5+ {[%clk 0:00:11.8]}
37... Ke8 {[%clk 0:00:02.7]} 38. Rc4 {[%clk 0:00:12.1]} 38... Rc1 {[%clk
0:00:01.6]} 39. Qe6+ {[%clk 0:00:09.5]} 39... Kd8 {[%clk 0:00:01]} 40. Qd6+
{[%clk 0:00:09.2]} 40... Ke8 {[%clk 0:00:01.3]} 41. Qe7# {[%clk 0:00:09.7]} 1-0

[Event "Late-Titled-Tuesday-Blitz-November-28-2023"]
[Site "Chess.com"]
[Date "2023.11.28"]
[Round "7"]
[White "Siemba"]
[Black "PowerThinking2650"]
[Result "0-1"]
[WhiteElo "2595"]
[BlackElo "2480"]
[TimeControl "180+1"]
[EndTime "15:15:15 PST"]
[Termination "PowerThinking2650 won by checkmate"]

1. e4 {[%clk 0:03:00.9]} 1... e5 {[%clk 0:02:57.5]} 2. Nf3 {[%clk 0:03:00.2]}
2... Nc6 {[%clk 0:02:57.6]} 3. Bc4 {[%clk 0:03:00.7]} 3... Nf6 {[%clk
0:02:57.1]} 4. Ng5 {[%clk 0:02:59.9]} 4... d5 {[%clk 0:02:56.8]} 5. exd5 {[%clk
0:03:00.8]} 5... Na5 {[%clk 0:02:57]} 6. Bb5+ {[%clk 0:03:00.9]} 6... c6 {[%clk
0:02:57.7]} 7. dxc6 {[%clk 0:03:01.8]} 7... bxc6 {[%clk 0:02:58.4]} 8. Bd3
{[%clk 0:03:02.2]} 8... Nd5 {[%clk 0:02:58.2]} 9. h4 {[%clk 0:03:02.9]} 9... g6
{[%clk 0:02:51]} 10. Nc3 {[%clk 0:02:54.2]} 10... f5 {[%clk 0:02:42.1]} 11. Qf3
{[%clk 0:02:37.8]} 11... Bg7 {[%clk 0:02:11.6]} 12. Nxd5 {[%clk 0:02:34.6]}
12... Qxd5 {[%clk 0:01:57.4]} 13. Qxd5 {[%clk 0:02:34.3]} 13... cxd5 {[%clk
0:01:57.8]} 14. Bb5+ {[%clk 0:02:35]} 14... Bd7 {[%clk 0:01:50.2]} 15. Bxd7+
{[%clk 0:02:34.6]} 15... Kxd7 {[%clk 0:01:49.5]} 16. d3 {[%clk 0:02:06.5]} 16...
Nc6 {[%clk 0:01:42.1]} 17. c3 {[%clk 0:01:57.1]} 17... h6 {[%clk 0:01:33.3]} 18.
Nh3 {[%clk 0:01:52.3]} 18... d4 {[%clk 0:01:14]} 19. Bd2 {[%clk 0:01:45]} 19...
Rhb8 {[%clk 0:01:04.7]} 20. b3 {[%clk 0:01:39.8]} 20... e4 {[%clk 0:01:00.5]}
21. c4 {[%clk 0:01:33.5]} 21... e3 {[%clk 0:00:49.6]} 22. Bc1 {[%clk 0:01:06.4]}
22... Be5 {[%clk 0:00:48.9]} 23. Ba3 {[%clk 0:00:55.2]} 23... f4 {[%clk
0:00:41.6]} 24. f3 {[%clk 0:00:45.1]} 24... a5 {[%clk 0:00:39.5]} 25. Ng1 {[%clk
0:00:44.2]} 25... Ke6 {[%clk 0:00:29]} 26. Ne2 {[%clk 0:00:44.2]} 26... Kf5
{[%clk 0:00:27.8]} 27. Rb1 {[%clk 0:00:36.1]} 27... Nb4 {[%clk 0:00:27.4]} 28.
Bxb4 {[%clk 0:00:36.2]} 28... axb4 {[%clk 0:00:28]} 29. Nc1 {[%clk 0:00:36.1]}
29... g5 {[%clk 0:00:26.3]} 30. hxg5 {[%clk 0:00:35.8]} 30... hxg5 {[%clk
0:00:26.5]} 31. Rh6 {[%clk 0:00:29.6]} 31... Rh8 {[%clk 0:00:25.5]} 32. Rb6
{[%clk 0:00:10.5]} 32... Rh1+ {[%clk 0:00:22.7]} 33. Ke2 {[%clk 0:00:10.7]}
33... Rg1 {[%clk 0:00:22.1]} 34. Rxb4 {[%clk 0:00:09.7]} 34... Rxg2+ {[%clk
0:00:21.6]} 35. Ke1 {[%clk 0:00:09.5]} 35... Rh8 {[%clk 0:00:20.6]} 36. Kf1
{[%clk 0:00:09.2]} 36... Rf2+ {[%clk 0:00:13]} 37. Kg1 {[%clk 0:00:09.5]} 37...
Rxf3 {[%clk 0:00:11.7]} 38. Ne2 {[%clk 0:00:09.2]} 38... Rf2 {[%clk 0:00:10.6]}
39. Re1 {[%clk 0:00:08.9]} 39... f3 {[%clk 0:00:08.6]} 40. Nxd4+ {[%clk
0:00:05]} 40... Bxd4 {[%clk 0:00:08.4]} 41. Rb5+ {[%clk 0:00:05.8]} 41... Kg4
{[%clk 0:00:08.2]} 42. Rd5 {[%clk 0:00:06]} 42... Rg2+ {[%clk 0:00:08]} 43. Kf1
{[%clk 0:00:06.1]} 43... Rh1# {[%clk 0:00:08.1]} 0-1